[Event "Titled Tuesday Blitz June 6 Early 2023"]
[White "Escanor89"]
[Black "LeoLV10"]
[WhiteElo "2533"]
[BlackElo "2414"]
[Result "0-1"]
[Round "7"]
[TimeControl "180+2"]
[Date "2023.06.06"]
[WhiteClock "0:00:03"]
[BlackClock "0:00:04"]
[Board "110"]

1. e4 {[%clk 0:03:00]}  c6 {[%clk 0:02:58]} 2. d4 {[%clk 0:02:57]}  d5 {[%clk 0:02:59]} 3. Nd2 {[%clk 0:02:56]}  dxe4 {[%clk 0:02:58]} 4. Nxe4 {[%clk 0:02:57]}  Nf6 {[%clk 0:02:59]} 5. Nxf6+ {[%clk 0:02:56]}  exf6 {[%clk 0:03:00]} 6. c3 {[%clk 0:02:56]}  Bd6 {[%clk 0:02:59]} 7. Bd3 {[%clk 0:02:56]}  O-O {[%clk 0:02:59]} 8. Qc2 {[%clk 0:02:55]}  Re8+ {[%clk 0:03:00]} 9. Ne2 {[%clk 0:02:55]}  h5 {[%clk 0:03:01]} 10. O-O {[%clk 0:02:49]}  Nd7 {[%clk 0:03:00]} 11. Be3 {[%clk 0:02:46]}  Nf8 {[%clk 0:03:00]} 12. Rfe1 {[%clk 0:02:46]}  h4 {[%clk 0:02:59]} 13. Bf5 {[%clk 0:02:28]}  Bxf5 {[%clk 0:02:43]} 14. Qxf5 {[%clk 0:02:27]}  g6 {[%clk 0:02:44]} 15. Qh3 {[%clk 0:02:18]}  f5 {[%clk 0:02:42]} 16. Bh6 {[%clk 0:01:58]}  Ne6 {[%clk 0:02:40]} 17. Qd3 {[%clk 0:01:52]}  Kh7 {[%clk 0:02:36]} 18. Bd2 {[%clk 0:01:51]}  Kg7 {[%clk 0:02:34]} 19. c4 {[%clk 0:01:51]}  Rh8 {[%clk 0:02:30]} 20. Bc3 {[%clk 0:01:46]}  f6 {[%clk 0:02:03]} 21. Rad1 {[%clk 0:01:25]}  Qc7 {[%clk 0:01:54]} 22. h3 {[%clk 0:01:23]}  Rad8 {[%clk 0:01:51]} 23. d5 {[%clk 0:01:14]}  Nc5 {[%clk 0:01:50]} 24. Qd4 {[%clk 0:01:00]}  Ne4 {[%clk 0:01:49]} 25. Qd3 {[%clk 0:00:29]}  c5 {[%clk 0:01:39]} 26. f3 {[%clk 0:00:26]}  Bh2+ {[%clk 0:01:24]} 27. Kf1 {[%clk 0:00:25]}  Nxc3 {[%clk 0:01:18]} 28. Nxc3 {[%clk 0:00:25]}  Bg3 {[%clk 0:01:06]} 29. Re6 {[%clk 0:00:24]}  Rhe8 {[%clk 0:01:06]} 30. Rxe8 {[%clk 0:00:20]}  Rxe8 {[%clk 0:01:06]} 31. d6 {[%clk 0:00:20]}  Qd7 {[%clk 0:01:06]} 32. Ne2 {[%clk 0:00:16]}  Be5 {[%clk 0:00:49]} 33. b3 {[%clk 0:00:15]}  g5 {[%clk 0:00:45]} 34. f4 {[%clk 0:00:15]}  gxf4 {[%clk 0:00:44]} 35. Qf3 {[%clk 0:00:14]}  Re6 {[%clk 0:00:38]} 36. Nxf4 {[%clk 0:00:14]}  Rxd6 {[%clk 0:00:37]} 37. Rxd6 {[%clk 0:00:13]}  Qxd6 {[%clk 0:00:38]} 38. Nd5 {[%clk 0:00:14]}  Qe6 {[%clk 0:00:35]} 39. Qh5 {[%clk 0:00:13]}  Bg3 {[%clk 0:00:31]} 40. Qe2 {[%clk 0:00:13]}  Be5 {[%clk 0:00:22]} 41. a4 {[%clk 0:00:13]}  Qf7 {[%clk 0:00:19]} 42. Qe1 {[%clk 0:00:11]}  Qh5 {[%clk 0:00:18]} 43. Qe2 {[%clk 0:00:09]}  Qg5 {[%clk 0:00:18]} 44. Qf3 {[%clk 0:00:06]}  Qc1+ {[%clk 0:00:18]} 45. Ke2 {[%clk 0:00:06]}  Qc2+ {[%clk 0:00:18]} 46. Kf1 {[%clk 0:00:06]}  Bg3 {[%clk 0:00:17]} 47. Ne3 {[%clk 0:00:03]}  Qc1+ {[%clk 0:00:17]} 48. Nd1 {[%clk 0:00:03]}  Qd2 {[%clk 0:00:17]} 49. Qe2 {[%clk 0:00:03]}  Qf4+ {[%clk 0:00:17]} 50. Qf3 {[%clk 0:00:03]}  Qd4 {[%clk 0:00:17]} 51. Ne3 {[%clk 0:00:03]}  Qa1+ {[%clk 0:00:16]} 52. Qd1 {[%clk 0:00:03]}  Qc3 {[%clk 0:00:15]} 53. Qd7+ {[%clk 0:00:03]}  Kf8 {[%clk 0:00:12]} 54. Qc8+ {[%clk 0:00:03]}  Kf7 {[%clk 0:00:11]} 55. Qd7+ {[%clk 0:00:03]}  Kf8 {[%clk 0:00:08]} 56. Qd8+ {[%clk 0:00:03]}  Kf7 {[%clk 0:00:09]} 57. Qd7+ {[%clk 0:00:03]}  Kg6 {[%clk 0:00:09]} 58. Qxf5+ {[%clk 0:00:03]}  Kg7 {[%clk 0:00:08]} 59. Qd7+ {[%clk 0:00:03]}  Kf8 {[%clk 0:00:09]} 60. Qd8+ {[%clk 0:00:03]}  Kf7 {[%clk 0:00:10]} 61. Qd7+ {[%clk 0:00:03]}  Kg6 {[%clk 0:00:10]} 62. Qg4+ {[%clk 0:00:03]}  Kh7 {[%clk 0:00:07]} 63. Qf5+ {[%clk 0:00:03]}  Kh6 {[%clk 0:00:04]} 64. Qg4 {[%clk 0:00:03]}  Qe1# {[%clk 0:00:04]} 0-1


[Site "https://www.chess.com"]

[Event "Titled Tuesday Blitz June 6 Early 2023"]
[White "Kokoszczynski, Jan"]
[Black "Fernandez Siles, Luis"]
[WhiteFideId "1174460"]
[BlackFideId "2209420"]
[WhiteElo "2139"]
[BlackElo "2195"]
[Result "0-1"]
[Round "7"]
[TimeControl "180+2"]
[Date "2023.06.06"]
[WhiteClock "0:00:07"]
[BlackClock "0:00:21"]
[Board "114"]

1. e4 {[%clk 0:03:00]}  c5 {[%clk 0:02:54]} 2. Nf3 {[%clk 0:03:00]}  Nc6 {[%clk 0:02:54]} 3. d4 {[%clk 0:03:00]}  cxd4 {[%clk 0:02:55]} 4. Nxd4 {[%clk 0:03:01]}  Nf6 {[%clk 0:02:55]} 5. Nc3 {[%clk 0:03:01]}  e5 {[%clk 0:02:56]} 6. Ndb5 {[%clk 0:02:57]}  d6 {[%clk 0:02:56]} 7. Nd5 {[%clk 0:02:57]}  Nxd5 {[%clk 0:02:56]} 8. exd5 {[%clk 0:02:58]}  Nb8 {[%clk 0:02:56]} 9. a4 {[%clk 0:02:47]}  Be7 {[%clk 0:02:55]} 10. Be2 {[%clk 0:02:47]}  O-O {[%clk 0:02:55]} 11. O-O {[%clk 0:02:47]}  f5 {[%clk 0:02:55]} 12. Bd2 {[%clk 0:02:47]}  Nd7 {[%clk 0:02:50]} 13. a5 {[%clk 0:02:47]}  e4 {[%clk 0:02:38]} 14. Nd4 {[%clk 0:02:41]}  Ne5 {[%clk 0:02:35]} 15. a6 {[%clk 0:02:34]}  bxa6 {[%clk 0:02:34]} 16. Bxa6 {[%clk 0:02:32]}  Qb6 {[%clk 0:02:26]} 17. Bxc8 {[%clk 0:02:22]}  Qxd4 {[%clk 0:02:26]} 18. Be6+ {[%clk 0:02:22]}  Kh8 {[%clk 0:02:26]} 19. Bc3 {[%clk 0:02:21]}  Qb6 {[%clk 0:02:15]} 20. Qe2 {[%clk 0:02:03]}  Ng6 {[%clk 0:02:07]} 21. Qa6 {[%clk 0:01:50]}  Qd8 {[%clk 0:01:54]} 22. g3 {[%clk 0:01:08]}  Bf6 {[%clk 0:01:50]} 23. Bxf6 {[%clk 0:01:06]}  Rxf6 {[%clk 0:01:38]} 24. Qb7 {[%clk 0:00:42]}  Rf8 {[%clk 0:01:21]} 25. Rxa7 {[%clk 0:00:35]}  Rxa7 {[%clk 0:01:21]} 26. Qxa7 {[%clk 0:00:36]}  Ne5 {[%clk 0:01:21]} 27. Qe3 {[%clk 0:00:18]}  Nf3+ {[%clk 0:01:06]} 28. Kg2 {[%clk 0:00:18]}  Qe8 {[%clk 0:01:07]} 29. Ra1 {[%clk 0:00:14]}  Qh5 {[%clk 0:01:03]} 30. h4 {[%clk 0:00:15]}  Qg4 {[%clk 0:01:03]} 31. Qf4 {[%clk 0:00:13]}  Nxh4+ {[%clk 0:01:02]} 32. Kg1 {[%clk 0:00:12]}  Nf3+ {[%clk 0:00:58]} 33. Kg2 {[%clk 0:00:11]}  Nh4+ {[%clk 0:00:54]} 34. Kg1 {[%clk 0:00:11]}  Nf3+ {[%clk 0:00:54]} 35. Kf1 {[%clk 0:00:10]}  Qh3+ {[%clk 0:00:48]} 36. Ke2 {[%clk 0:00:10]}  Nd4+ {[%clk 0:00:44]} 37. Kd2 {[%clk 0:00:11]}  g5 {[%clk 0:00:36]} 38. Qe3 {[%clk 0:00:10]}  Nf3+ {[%clk 0:00:33]} 39. Kc3 {[%clk 0:00:10]}  Qh6 {[%clk 0:00:33]} 40. Ra7 {[%clk 0:00:09]}  Qf6+ {[%clk 0:00:33]} 41. Kc4 {[%clk 0:00:07]}  Ne5+ {[%clk 0:00:26]} 42. Kb3 {[%clk 0:00:07]}  Rb8+ {[%clk 0:00:25]} 43. Ka2 {[%clk 0:00:08]}  Nd3 {[%clk 0:00:24]} 44. c3 {[%clk 0:00:07]}  Rxb2+ {[%clk 0:00:23]} 45. Ka1 {[%clk 0:00:07]}  Qxc3 {[%clk 0:00:21]} 46. Ra8+ {[%clk 0:00:07]}  Rb8+ {[%clk 0:00:21]} 0-1


[Site "https://www.chess.com"]

[Event "Titled Tuesday Blitz June 6 Early 2023"]
[White "i_like_explosions"]
[Black "Sovetbekova, Nurai"]
[BlackFideId "13801910"]
[WhiteElo "2457"]
[BlackElo "1857"]
[Result "1-0"]
[Round "7"]
[TimeControl "180+2"]
[Date "2023.06.06"]
[WhiteClock "0:00:16"]
[BlackClock "0:00:02"]
[Board "115"]

1. d4 {[%clk 0:03:00]}  Nf6 {[%clk 0:02:57]} 2. Bg5 {[%clk 0:02:59]}  d5 {[%clk 0:02:56]} 3. Bxf6 {[%clk 0:02:57]}  exf6 {[%clk 0:02:55]} 4. e3 {[%clk 0:02:58]}  Bd6 {[%clk 0:02:52]} 5. c4 {[%clk 0:02:56]}  dxc4 {[%clk 0:02:51]} 6. Bxc4 {[%clk 0:02:57]}  O-O {[%clk 0:02:50]} 7. Nf3 {[%clk 0:02:58]}  c5 {[%clk 0:02:49]} 8. O-O {[%clk 0:02:57]}  Bg4 {[%clk 0:02:46]} 9. Nc3 {[%clk 0:02:56]}  cxd4 {[%clk 0:02:40]} 10. exd4 {[%clk 0:02:56]}  Nc6 {[%clk 0:02:35]} 11. d5 {[%clk 0:02:56]}  Ne5 {[%clk 0:02:26]} 12. Be2 {[%clk 0:02:56]}  Nxf3+ {[%clk 0:02:21]} 13. Bxf3 {[%clk 0:02:57]}  Bxf3 {[%clk 0:02:20]} 14. Qxf3 {[%clk 0:02:58]}  Rc8 {[%clk 0:02:18]} 15. Rfe1 {[%clk 0:02:53]}  Be5 {[%clk 0:02:16]} 16. Rad1 {[%clk 0:02:47]}  a6 {[%clk 0:02:10]} 17. Re2 {[%clk 0:02:10]}  Qc7 {[%clk 0:01:59]} 18. Ne4 {[%clk 0:02:00]}  Bxh2+ {[%clk 0:01:56]} 19. Kh1 {[%clk 0:01:59]}  Bd6 {[%clk 0:01:56]} 20. g3 {[%clk 0:01:56]}  Qd7 {[%clk 0:01:50]} 21. Kg2 {[%clk 0:01:55]}  Rfd8 {[%clk 0:01:45]} 22. Red2 {[%clk 0:01:53]}  Bb4 {[%clk 0:01:40]} 23. Rd3 {[%clk 0:01:52]}  Rc2 {[%clk 0:01:34]} 24. Rb3 {[%clk 0:01:26]}  Ba5 {[%clk 0:01:25]} 25. Qd3 {[%clk 0:01:24]}  Rdc8 {[%clk 0:01:18]} 26. Rh1 {[%clk 0:01:20]}  f5 {[%clk 0:01:02]} 27. Ng5 {[%clk 0:01:15]}  h6 {[%clk 0:01:02]} 28. Nf3 {[%clk 0:01:13]}  R2c5 {[%clk 0:00:54]} 29. Rd1 {[%clk 0:01:02]}  Rd8 {[%clk 0:00:52]} 30. d6 {[%clk 0:00:57]}  b5 {[%clk 0:00:25]} 31. Qd4 {[%clk 0:00:38]}  Rc4 {[%clk 0:00:16]} 32. Qd5 {[%clk 0:00:37]}  Qc6 {[%clk 0:00:02]} 33. Rbd3 {[%clk 0:00:16]}  Rxd6 {[%clk 0:00:01]} 34. Qxd6 {[%clk 0:00:15]}  Qxd6 {[%clk 0:00:01]} 35. Rxd6 {[%clk 0:00:16]}  Rc2 {[%clk 0:00:02]} 36. Rxa6 {[%clk 0:00:16]} 1-0


[Site "https://www.chess.com"]

[Event "Titled Tuesday Blitz June 6 Early 2023"]
[White "MunichMouse"]
[Black "Ansh M Shah"]
[BlackFideId "25033379"]
[WhiteElo "2282"]
[BlackElo "2084"]
[Result "1-0"]
[Round "7"]
[TimeControl "180+2"]
[Date "2023.06.06"]
[WhiteClock "0:00:25"]
[BlackClock "0:00:13"]
[Board "119"]

1. d4 {[%clk 0:02:52]}  c6 {[%clk 0:03:00]} 2. c4 {[%clk 0:02:52]}  d5 {[%clk 0:03:01]} 3. Nf3 {[%clk 0:02:52]}  Nf6 {[%clk 0:03:01]} 4. e3 {[%clk 0:02:53]}  e6 {[%clk 0:03:00]} 5. Nc3 {[%clk 0:02:53]}  Be7 {[%clk 0:03:00]} 6. b3 {[%clk 0:02:52]}  O-O {[%clk 0:03:00]} 7. Bb2 {[%clk 0:02:52]}  b6 {[%clk 0:02:48]} 8. Bd3 {[%clk 0:02:52]}  Bb7 {[%clk 0:02:48]} 9. O-O {[%clk 0:02:53]}  Nbd7 {[%clk 0:02:49]} 10. e4 {[%clk 0:02:53]}  dxe4 {[%clk 0:02:49]} 11. Nxe4 {[%clk 0:02:54]}  Nxe4 {[%clk 0:02:50]} 12. Bxe4 {[%clk 0:02:54]}  Nf6 {[%clk 0:02:50]} 13. Bc2 {[%clk 0:02:55]}  c5 {[%clk 0:02:50]} 14. Ne5 {[%clk 0:02:49]}  cxd4 {[%clk 0:02:43]} 15. Bxd4 {[%clk 0:02:48]}  Qc7 {[%clk 0:02:33]} 16. Qe2 {[%clk 0:02:45]}  Rad8 {[%clk 0:02:29]} 17. Rad1 {[%clk 0:02:45]}  Bc5 {[%clk 0:02:26]} 18. Bb2 {[%clk 0:02:43]}  Rxd1 {[%clk 0:02:25]} 19. Rxd1 {[%clk 0:02:42]}  Rd8 {[%clk 0:02:25]} 20. Rxd8+ {[%clk 0:02:39]}  Qxd8 {[%clk 0:02:26]} 21. Qd3 {[%clk 0:02:39]}  Qxd3 {[%clk 0:02:00]} 22. Bxd3 {[%clk 0:02:35]}  Ne4 {[%clk 0:01:55]} 23. Bxe4 {[%clk 0:02:24]}  Bxe4 {[%clk 0:01:56]} 24. a3 {[%clk 0:02:22]}  a5 {[%clk 0:01:51]} 25. Kf1 {[%clk 0:02:18]}  Bc2 {[%clk 0:01:49]} 26. b4 {[%clk 0:01:58]}  axb4 {[%clk 0:01:46]} 27. axb4 {[%clk 0:01:58]}  Bxb4 {[%clk 0:01:46]} 28. Ke2 {[%clk 0:01:56]}  Bc5 {[%clk 0:01:34]} 29. Nd7 {[%clk 0:01:53]}  Bb3 {[%clk 0:00:24]} 30. Kd3 {[%clk 0:01:47]}  Bxf2 {[%clk 0:00:21]} 31. Bd4 {[%clk 0:01:46]}  Bxd4 {[%clk 0:00:11]} 32. Kxd4 {[%clk 0:01:47]}  e5+ {[%clk 0:00:09]} 33. Nxe5 {[%clk 0:01:44]}  Ba4 {[%clk 0:00:07]} 34. Kd5 {[%clk 0:01:40]}  Kf8 {[%clk 0:00:07]} 35. Kd6 {[%clk 0:01:40]}  f6 {[%clk 0:00:07]} 36. Nf3 {[%clk 0:01:37]}  Kf7 {[%clk 0:00:06]} 37. Nd4 {[%clk 0:01:37]}  g5 {[%clk 0:00:06]} 38. Kc7 {[%clk 0:01:32]}  Kg6 {[%clk 0:00:04]} 39. Kxb6 {[%clk 0:01:32]}  f5 {[%clk 0:00:05]} 40. c5 {[%clk 0:01:31]}  f4 {[%clk 0:00:05]} 41. Nb5 {[%clk 0:01:31]}  Bb3 {[%clk 0:00:04]} 42. c6 {[%clk 0:01:31]}  Be6 {[%clk 0:00:05]} 43. Nd4 {[%clk 0:01:29]}  Bc8 {[%clk 0:00:05]} 44. Kc7 {[%clk 0:01:29]}  Ba6 {[%clk 0:00:05]} 45. Kb6 {[%clk 0:01:28]}  Bc8 {[%clk 0:00:06]} 46. Kc7 {[%clk 0:01:27]}  Ba6 {[%clk 0:00:06]} 47. Kd6 {[%clk 0:01:10]}  Kf6 {[%clk 0:00:05]} 48. c7 {[%clk 0:01:07]}  h5 {[%clk 0:00:06]} 49. Nb5 {[%clk 0:00:36]}  Kf5 {[%clk 0:00:05]} 50. Kd5 {[%clk 0:00:34]}  g4 {[%clk 0:00:05]} 51. Nd6+ {[%clk 0:00:32]}  Kg5 {[%clk 0:00:06]} 52. Ke4 {[%clk 0:00:29]}  h4 {[%clk 0:00:06]} 53. h3 {[%clk 0:00:20]}  gxh3 {[%clk 0:00:04]} 54. gxh3 {[%clk 0:00:20]}  Kf6 {[%clk 0:00:03]} 55. Kxf4 {[%clk 0:00:19]}  Ke6 {[%clk 0:00:04]} 56. c8=Q+ {[%clk 0:00:20]}  Bxc8 {[%clk 0:00:03]} 57. Nxc8 {[%clk 0:00:21]}  Kf6 {[%clk 0:00:03]} 58. Kg4 {[%clk 0:00:20]}  Kg6 {[%clk 0:00:04]} 59. Kxh4 {[%clk 0:00:21]}  Kh6 {[%clk 0:00:04]} 60. Kg4 {[%clk 0:00:21]}  Kg6 {[%clk 0:00:05]} 61. h4 {[%clk 0:00:22]}  Kh6 {[%clk 0:00:06]} 62. h5 {[%clk 0:00:23]}  Kh7 {[%clk 0:00:07]} 63. Kg5 {[%clk 0:00:23]}  Kg7 {[%clk 0:00:07]} 64. h6+ {[%clk 0:00:24]}  Kh7 {[%clk 0:00:08]} 65. Kh5 {[%clk 0:00:24]}  Kh8 {[%clk 0:00:09]} 66. Kg6 {[%clk 0:00:24]}  Kg8 {[%clk 0:00:10]} 67. Nd6 {[%clk 0:00:23]}  Kh8 {[%clk 0:00:11]} 68. Nf7+ {[%clk 0:00:24]}  Kg8 {[%clk 0:00:11]} 69. h7+ {[%clk 0:00:24]}  Kf8 {[%clk 0:00:12]} 70. h8=Q+ {[%clk 0:00:25]}  Ke7 {[%clk 0:00:13]} 71. Qd8+ {[%clk 0:00:25]} 1-0


[Site "https://www.chess.com"]

[Event "Titled Tuesday Blitz June 6 Early 2023"]
[White "Hoffmann, Asa"]
[Black "Chernobay, Artem"]
[WhiteFideId "2001470"]
[BlackFideId "4167406"]
[WhiteElo "2117"]
[BlackElo "2474"]
[Result "0-1"]
[Round "7"]
[TimeControl "180+2"]
[Date "2023.06.06"]
[WhiteClock "0:01:11"]
[BlackClock "0:01:21"]
[Board "122"]

1. d4 {[%clk 0:02:52]}  Nf6 {[%clk 0:02:59]} 2. Bg5 {[%clk 0:02:51]}  Ne4 {[%clk 0:02:59]} 3. Bf4 {[%clk 0:02:51]}  c5 {[%clk 0:02:58]} 4. f3 {[%clk 0:02:51]}  Nf6 {[%clk 0:02:57]} 5. dxc5 {[%clk 0:02:51]}  Qa5+ {[%clk 0:02:55]} 6. Nc3 {[%clk 0:02:50]}  Qxc5 {[%clk 0:02:55]} 7. e4 {[%clk 0:02:50]}  d6 {[%clk 0:02:52]} 8. Qd2 {[%clk 0:02:50]}  Nc6 {[%clk 0:02:49]} 9. Nb5 {[%clk 0:02:49]}  Qb6 {[%clk 0:02:46]} 10. Be3 {[%clk 0:02:48]}  Qd8 {[%clk 0:02:46]} 11. c4 {[%clk 0:02:48]}  a6 {[%clk 0:02:43]} 12. Nc3 {[%clk 0:02:47]}  e6 {[%clk 0:02:40]} 13. O-O-O {[%clk 0:02:39]}  Be7 {[%clk 0:02:40]} 14. Bd3 {[%clk 0:02:39]}  O-O {[%clk 0:02:38]} 15. Nge2 {[%clk 0:02:39]}  b5 {[%clk 0:02:34]} 16. cxb5 {[%clk 0:02:38]}  axb5 {[%clk 0:02:35]} 17. Bxb5 {[%clk 0:02:37]}  Na5 {[%clk 0:02:19]} 18. Kb1 {[%clk 0:02:33]}  Ba6 {[%clk 0:02:17]} 19. Bxa6 {[%clk 0:02:24]}  Rxa6 {[%clk 0:02:18]} 20. b3 {[%clk 0:02:24]}  Qa8 {[%clk 0:02:14]} 21. Nc1 {[%clk 0:02:18]}  Rb8 {[%clk 0:02:12]} 22. Rhe1 {[%clk 0:02:03]}  Nc4 {[%clk 0:02:02]} 23. Qd3 {[%clk 0:01:55]}  Nxe3 {[%clk 0:01:59]} 24. Rxe3 {[%clk 0:01:54]}  Nd7 {[%clk 0:01:59]} 25. Rd2 {[%clk 0:01:44]}  Bg5 {[%clk 0:01:53]} 26. g3 {[%clk 0:01:35]}  Nc5 {[%clk 0:01:52]} 27. Qe2 {[%clk 0:01:34]}  Bxe3 {[%clk 0:01:51]} 28. Qxe3 {[%clk 0:01:34]}  Rc6 {[%clk 0:01:44]} 29. e5 {[%clk 0:01:31]}  dxe5 {[%clk 0:01:34]} 30. Qxe5 {[%clk 0:01:29]}  Rbc8 {[%clk 0:01:31]} 31. N1e2 {[%clk 0:01:28]}  h6 {[%clk 0:01:27]} 32. f4 {[%clk 0:01:27]}  Qa6 {[%clk 0:01:21]} 33. Kb2 {[%clk 0:01:26]}  Nd3+ {[%clk 0:01:21]} 34. Rxd3 {[%clk 0:01:25]}  Qxd3 {[%clk 0:01:22]} 35. g4 {[%clk 0:01:12]}  Qd2+ {[%clk 0:01:22]} 36. Kb1 {[%clk 0:01:11]}  Rxc3 {[%clk 0:01:21]} 0-1


[Site "https://www.chess.com"]

[Event "Titled Tuesday Blitz June 6 Early 2023"]
[White "Korpics, Zsolt"]
[Black "Degenbaev, Aziz"]
[WhiteFideId "705241"]
[BlackFideId "13802640"]
[WhiteElo "2353"]
[BlackElo "2152"]
[Result "0-1"]
[Round "7"]
[TimeControl "180+2"]
[Date "2023.06.06"]
[WhiteClock "0:00:01"]
[BlackClock "0:00:07"]
[Board "125"]

1. e4 {[%clk 0:03:00]}  c5 {[%clk 0:02:59]} 2. Nc3 {[%clk 0:03:00]}  d6 {[%clk 0:02:59]} 3. f4 {[%clk 0:03:00]}  g6 {[%clk 0:02:58]} 4. Nf3 {[%clk 0:03:00]}  Bg7 {[%clk 0:02:59]} 5. Bc4 {[%clk 0:03:01]}  Nc6 {[%clk 0:02:58]} 6. O-O {[%clk 0:03:01]}  e6 {[%clk 0:02:59]} 7. d3 {[%clk 0:03:01]}  Nge7 {[%clk 0:02:59]} 8. Qe1 {[%clk 0:03:02]}  O-O {[%clk 0:02:59]} 9. f5 {[%clk 0:03:02]}  gxf5 {[%clk 0:02:59]} 10. Qh4 {[%clk 0:02:19]}  Ng6 {[%clk 0:02:58]} 11. Qh5 {[%clk 0:02:17]}  fxe4 {[%clk 0:02:58]} 12. dxe4 {[%clk 0:02:16]}  Nd4 {[%clk 0:02:56]} 13. Ng5 {[%clk 0:02:10]}  h6 {[%clk 0:02:53]} 14. Nxf7 {[%clk 0:01:06]}  Rxf7 {[%clk 0:02:52]} 15. Rxf7 {[%clk 0:01:06]}  Kxf7 {[%clk 0:02:06]} 16. Bxh6 {[%clk 0:01:06]}  Qh4 {[%clk 0:02:06]} 17. Rf1+ {[%clk 0:00:56]}  Kg8 {[%clk 0:02:05]} 18. Qxg6 {[%clk 0:00:45]}  Qxh6 {[%clk 0:02:04]} 19. Qe8+ {[%clk 0:00:45]}  Kh7 {[%clk 0:02:00]} 20. e5 {[%clk 0:00:25]}  Qg6 {[%clk 0:01:40]} 21. Bd3 {[%clk 0:00:21]}  Nf5 {[%clk 0:01:40]} 22. Qd8 {[%clk 0:00:14]}  b6 {[%clk 0:01:28]} 23. Ne4 {[%clk 0:00:06]}  Bb7 {[%clk 0:01:20]} 24. Qd7 {[%clk 0:00:04]}  Bxe4 {[%clk 0:01:05]} 25. Bxe4 {[%clk 0:00:05]}  Rf8 {[%clk 0:01:04]} 26. exd6 {[%clk 0:00:03]}  Kh8 {[%clk 0:00:59]} 27. Bxf5 {[%clk 0:00:02]}  exf5 {[%clk 0:00:58]} 28. Qe7 {[%clk 0:00:02]}  Re8 {[%clk 0:00:57]} 29. Qc7 {[%clk 0:00:02]}  Re2 {[%clk 0:00:49]} 30. g3 {[%clk 0:00:01]}  Qh5 {[%clk 0:00:44]} 31. Qc8+ {[%clk 0:00:02]}  Kh7 {[%clk 0:00:41]} 32. h4 {[%clk 0:00:02]}  Qg4 {[%clk 0:00:34]} 33. Qxf5+ {[%clk 0:00:02]}  Qxf5 {[%clk 0:00:34]} 34. Rxf5 {[%clk 0:00:03]}  Rd2 {[%clk 0:00:34]} 35. Rf7 {[%clk 0:00:02]}  Rxd6 {[%clk 0:00:33]} 36. Rxa7 {[%clk 0:00:03]}  Kg6 {[%clk 0:00:32]} 37. Rb7 {[%clk 0:00:03]}  c4 {[%clk 0:00:31]} 38. c3 {[%clk 0:00:02]}  Bf8 {[%clk 0:00:25]} 39. Kf1 {[%clk 0:00:03]}  Rf6+ {[%clk 0:00:24]} 40. Kg2 {[%clk 0:00:03]}  Bc5 {[%clk 0:00:25]} 41. Kh3 {[%clk 0:00:03]}  Rf2 {[%clk 0:00:24]} 42. b4 {[%clk 0:00:02]}  Be3 {[%clk 0:00:20]} 43. a4 {[%clk 0:00:02]}  Rc2 {[%clk 0:00:18]} 44. a5 {[%clk 0:00:02]}  bxa5 {[%clk 0:00:16]} 45. bxa5 {[%clk 0:00:03]}  Rxc3 {[%clk 0:00:16]} 46. a6 {[%clk 0:00:04]}  Ra3 {[%clk 0:00:17]} 47. Rc7 {[%clk 0:00:02]}  c3 {[%clk 0:00:16]} 48. a7 {[%clk 0:00:03]}  Bxa7 {[%clk 0:00:16]} 49. Kg4 {[%clk 0:00:03]}  Ra4+ {[%clk 0:00:15]} 50. Kf3 {[%clk 0:00:04]}  Bd4 {[%clk 0:00:15]} 51. g4 {[%clk 0:00:03]}  Be5 {[%clk 0:00:14]} 52. Rc6+ {[%clk 0:00:04]}  Kf7 {[%clk 0:00:14]} 53. h5 {[%clk 0:00:04]}  Rf4+ {[%clk 0:00:13]} 54. Ke3 {[%clk 0:00:02]}  Rxg4 {[%clk 0:00:13]} 55. Rc8 {[%clk 0:00:02]}  Rh4 {[%clk 0:00:12]} 56. h6 {[%clk 0:00:01]}  Rxh6 {[%clk 0:00:11]} 57. Rc5 {[%clk 0:00:01]}  Rh3+ {[%clk 0:00:07]} 58. Ke2 {[%clk 0:00:01]}  Bd4 {[%clk 0:00:07]} 0-1


[Site "https://www.chess.com"]

[Event "Titled Tuesday Blitz June 6 Early 2023"]
[White "Camilla_Lee"]
[Black "Rian, Kapriaga"]
[BlackFideId "7103263"]
[WhiteElo "2507"]
[BlackElo "2324"]
[Result "0-1"]
[Round "7"]
[TimeControl "180+2"]
[Date "2023.06.06"]
[WhiteClock "0:01:04"]
[BlackClock "0:00:32"]
[Board "129"]

1. e4 {[%clk 0:02:48]}  c6 {[%clk 0:02:55]} 2. d4 {[%clk 0:02:48]}  d5 {[%clk 0:02:55]} 3. Nc3 {[%clk 0:02:47]}  dxe4 {[%clk 0:02:54]} 4. Nxe4 {[%clk 0:02:45]}  Nf6 {[%clk 0:02:54]} 5. Ng5 {[%clk 0:02:43]}  Bf5 {[%clk 0:02:47]} 6. N1f3 {[%clk 0:02:43]}  Nbd7 {[%clk 0:02:45]} 7. Bc4 {[%clk 0:02:43]}  e6 {[%clk 0:02:45]} 8. Qe2 {[%clk 0:02:43]}  h6 {[%clk 0:02:38]} 9. Nxf7 {[%clk 0:02:35]}  Kxf7 {[%clk 0:02:34]} 10. Ne5+ {[%clk 0:02:35]}  Nxe5 {[%clk 0:02:33]} 11. Qxe5 {[%clk 0:02:36]}  Nd5 {[%clk 0:02:11]} 12. Bd2 {[%clk 0:02:25]}  Bd6 {[%clk 0:02:07]} 13. Qe2 {[%clk 0:02:26]}  Re8 {[%clk 0:02:02]} 14. O-O-O {[%clk 0:02:23]}  b5 {[%clk 0:01:56]} 15. Bb3 {[%clk 0:02:21]}  a5 {[%clk 0:01:54]} 16. a3 {[%clk 0:02:22]}  a4 {[%clk 0:01:52]} 17. Ba2 {[%clk 0:02:22]}  b4 {[%clk 0:01:41]} 18. axb4 {[%clk 0:02:22]}  a3 {[%clk 0:01:39]} 19. g4 {[%clk 0:02:03]}  Bg6 {[%clk 0:01:28]} 20. Rhe1 {[%clk 0:01:57]}  Qd7 {[%clk 0:00:59]} 21. Qc4 {[%clk 0:01:21]}  Ra7 {[%clk 0:00:44]} 22. Qb3 {[%clk 0:01:09]}  Rea8 {[%clk 0:00:39]} 23. c4 {[%clk 0:01:01]}  axb2+ {[%clk 0:00:38]} 24. Kxb2 {[%clk 0:01:01]}  Rxa2+ {[%clk 0:00:38]} 25. Qxa2 {[%clk 0:01:02]}  Rxa2+ {[%clk 0:00:37]} 26. Kxa2 {[%clk 0:01:03]}  Nxb4+ {[%clk 0:00:37]} 27. Kb3 {[%clk 0:01:04]}  Bc2+ {[%clk 0:00:32]} 0-1


[Site "https://www.chess.com"]

[Event "Titled Tuesday Blitz June 6 Early 2023"]
[White "Ziatdinov, Raset"]
[Black "Camacho Collados, Jose"]
[WhiteFideId "2015323"]
[BlackFideId "2265427"]
[WhiteElo "2220"]
[BlackElo "2212"]
[Result "0-1"]
[Round "7"]
[TimeControl "180+2"]
[Date "2023.06.06"]
[WhiteClock "0:02:36"]
[BlackClock "0:02:13"]
[Board "130"]

1. e4 {[%clk 0:03:00]}  e6 {[%clk 0:03:00]} 2. d4 {[%clk 0:03:00]}  d5 {[%clk 0:03:00]} 3. Nc3 {[%clk 0:03:01]}  dxe4 {[%clk 0:03:00]} 4. Nxe4 {[%clk 0:03:01]}  Bd7 {[%clk 0:03:01]} 5. Nf3 {[%clk 0:03:00]}  Bc6 {[%clk 0:03:01]} 6. Bd3 {[%clk 0:02:59]}  Nf6 {[%clk 0:03:01]} 7. Ng3 {[%clk 0:02:55]}  Bd6 {[%clk 0:02:58]} 8. c3 {[%clk 0:02:53]}  Nbd7 {[%clk 0:02:52]} 9. O-O {[%clk 0:02:53]}  Qe7 {[%clk 0:02:53]} 10. b4 {[%clk 0:02:53]}  a6 {[%clk 0:02:51]} 11. Re1 {[%clk 0:02:52]}  g6 {[%clk 0:02:51]} 12. Bg5 {[%clk 0:02:49]}  h6 {[%clk 0:02:47]} 13. Bd2 {[%clk 0:02:48]}  O-O-O {[%clk 0:02:46]} 14. a4 {[%clk 0:02:48]}  Nb6 {[%clk 0:02:16]} 15. b5 {[%clk 0:02:35]}  Bxf3 {[%clk 0:02:14]} 16. a5 {[%clk 0:02:36]}  Bxd1 {[%clk 0:02:13]} 0-1


[Site "https://www.chess.com"]